bitfinex/quotes_BTCUSD_20250213
["timestamp","ask_amount","ask_price","bid_price","bid_amount"]
[1739473677653,0.33689,96386.0,96385.0,0.155]
[1739473678099,0.0001065,96391.0,96385.0,0.25750365]
[1739473678308,0.0001065,96391.0,96386.0,0.10250365]
[1739473678531,0.0001065,96391.0,96387.0,0.15]
[1739473678749,0.398551,96390.0,96388.0,0.10250365]
[1739473678952,0.327602,96389.0,96388.0,0.10250365]
[1739473679370,0.155618,96390.0,96388.0,0.10250365]
[1739473679833,0.206278,96389.0,96388.0,0.10250365]
[1739473680445,0.206278,96389.0,96388.0,0.10450365]
[1739473680680,0.0001065,96391.0,96390.0,0.155617]
[1739473680879,0.0001065,96391.0,96390.0,0.25812065]
[1739473681527,0.0001065,96391.0,96390.0,0.10250365]
[1739473681745,0.0001065,96391.0,96390.0,0.25812065]
[1739473681963,0.0001065,96391.0,96390.0,0.48542065]
[1739473682822,0.0001065,96391.0,96390.0,0.48642065]
[1739473683688,0.0001065,96391.0,96390.0,0.48542065]
[1739473683890,0.0001065,96391.0,96390.0,0.49742065]
[1739473692301,0.0001065,96391.0,96390.0,1.10432065]
[1739473692535,0.76104542,96398.0,96397.0,0.411706]
[1739473692749,0.63022493,96398.0,96397.0,1.09810965]
[1739473693179,0.56050459,96398.0,96397.0,1.09810965]
[1739473693435,0.2938446,96398.0,96397.0,1.10810965]
[1739473693644,0.2938446,96398.0,96397.0,1.11510965]
[1739473694065,0.29846984,96398.0,96397.0,1.12210965]
[1739473694470,0.24355328,96398.0,96397.0,1.12210965]
[1739473696026,0.16056528,96398.0,96397.0,1.12210965]
[1739473696230,1.97265625,96400.0,96399.0,0.451203]
[1739473696431,1.9727425,96400.0,96399.0,0.57670665]
[1739473696841,1.72823077,96400.0,96399.0,0.57670665]
[1739473697034,1.64524277,96400.0,96399.0,0.57670665]
[1739473697236,1.59304243,96400.0,96399.0,0.57670665]
[1739473698583,1.59304243,96400.0,96399.0,0.58370665]
[1739473698739,1.59304243,96400.0,96399.0,0.59070665]
[1739473698939,1.59304243,96400.0,96399.0,0.58370665]
[1739473699144,1.59304243,96400.0,96399.0,0.59070665]
[1739473700019,1.59304243,96400.0,96399.0,1.44970665]
[1739473701013,1.49899443,96400.0,96399.0,1.44970665]
[1739473701237,1.12122976,96400.0,96399.0,1.44970665]
[1739473701439,0.97369675,96400.0,96399.0,1.44970665]
[1739473701660,0.69854421,96400.0,96399.0,1.44970665]
[1739473701820,0.67779721,96400.0,96399.0,1.44970665]
[1739473702023,0.28822464,96400.0,96399.0,1.44970665]
[1739473702265,0.0001066,96441.0,96408.0,0.325588]
[1739473702498,0.0001066,96441.0,96440.0,0.305537]
[1739473702709,0.00023794,96441.0,96440.0,0.96624065]
[1739473704981,0.00023794,96441.0,96440.0,0.97324065]
[1739473705395,0.00023794,96441.0,96440.0,1.05894065]
[1739473705603,0.00023794,96441.0,96440.0,1.05194065]
[1739473705810,0.00023794,96441.0,96440.0,1.04494065]
[1739473706114,0.00023794,96441.0,96440.0,1.05894065]
[1739473707871,0.00023794,96441.0,96440.0,0.98024065]
[1739473710078,0.00023794,96441.0,96440.0,0.80170365]
[1739473710323,0.00023794,96441.0,96440.0,0.95724065]
[1739473711826,0.00023794,96441.0,96440.0,0.98024065]
[1739473712766,0.0001065,96443.0,96442.0,0.155533]
[1739473712977,0.0001065,96443.0,96442.0,0.43103665]
[1739473713381,0.0001065,96443.0,96442.0,0.40803665]
[1739473713724,0.0468065,96443.0,96442.0,0.40803665]
[1739473714309,0.0001065,96443.0,96442.0,0.40803665]
[1739473714824,0.0001065,96443.0,96442.0,0.41503665]
[1739473715022,0.0001065,96443.0,96442.0,0.42203665]
[1739473715612,0.0001065,96443.0,96442.0,0.44503665]
[1739473716014,0.0001065,96443.0,96442.0,0.42203665]
[1739473721683,0.0001065,96443.0,96442.0,0.26650365]
[1739473722040,0.0001065,96443.0,96442.0,0.42203665]
[1739473724824,0.0001065,96443.0,96442.0,0.41126005]
[1739473728581,0.0001065,96443.0,96442.0,0.25572705]
[1739473728792,0.0001065,96443.0,96442.0,0.10572705]
[1739473728985,0.1556385,96443.0,96442.0,0.10572705]
[1739473729186,0.0001065,96443.0,96442.0,0.25572705]
[1739473729523,0.0001065,96443.0,96442.0,0.41126005]
[1739473732405,0.0001065,96443.0,96442.0,0.25572705]
[1739473732620,0.0001065,96443.0,96442.0,0.41126005]
[1739473736263,0.0001065,96443.0,96442.0,0.41122005]
[1739473737633,0.0001065,96443.0,96442.0,0.25568705]
[1739473737856,0.0001065,96443.0,96442.0,0.2559107]
[1739473738274,0.0001065,96443.0,96442.0,0.4114437]
[1739473738477,0.0001065,96443.0,96442.0,0.2559107]
[1739473739460,0.1556385,96443.0,96442.0,0.2559107]
[1739473739661,0.1556385,96443.0,96442.0,0.16422365]
[1739473739864,0.0776065,96443.0,96442.0,0.16422365]
[1739473740242,0.2331385,96443.0,96442.0,0.16422365]
[1739473740670,0.0776065,96443.0,96442.0,0.2667273]
[1739473741083,0.0776065,96443.0,96442.0,0.4222603]
[1739473741276,0.0001065,96443.0,96442.0,0.4222603]
[1739473743658,0.1556385,96443.0,96442.0,0.2667273]
[1739473744575,0.0001065,96443.0,96442.0,0.2667273]
[1739473744690,0.0001065,96443.0,96442.0,0.4222603]
[1739473745301,0.0832,96464.0,96442.0,0.4222603]
[1739473745302,0.02122549,96475.0,96442.0,0.2667273]
[1739473745527,0.572971,96474.0,96444.0,0.15]
[1739473745715,0.155495,96466.0,96461.0,0.15]
[1739473745916,0.771694,96465.0,96462.0,0.10250365]
[1739473746117,0.02122549,96475.0,96462.0,0.10250365]
[1739473746327,0.155493,96468.0,96462.0,0.25800465]
[1739473746500,0.283534,96467.0,96462.0,0.10250365]
[1739473746759,0.155498,96465.0,96462.0,0.10250365]
[1739473746973,0.207318,96471.0,96462.0,0.10250365]
[1739473747165,0.155496,96466.0,96462.0,0.10250365]
[1739473747365,0.155497,96465.0,96462.0,0.10250365]
[1739473747723,0.02122549,96475.0,96462.0,0.10250365]
[1739473747923,0.155495,96466.0,96462.0,0.10250365]
[1739473748138,0.431991,96465.0,96462.0,0.10250365]
[1739473748337,0.155498,96464.0,96462.0,0.10250365]
[1739473748902,0.0493,96465.0,96462.0,0.10250365]
[1739473749108,0.0493,96465.0,96462.0,0.10350365]
[1739473749419,0.0493,96465.0,96462.0,0.10650365]
[1739473749569,0.0493,96465.0,96462.0,0.10250365]
[1739473749777,0.0493,96465.0,96462.0,0.10550365]
[1739473749979,0.0493,96465.0,96462.0,0.10450365]
[1739473750381,0.0493,96465.0,96462.0,0.10750365]
[1739473750382,0.155498,96464.0,96462.0,0.10750365]
[1739473750564,0.0493,96465.0,96462.0,0.10750365]
[1739473751175,0.0493,96465.0,96463.0,0.15]
[1739473751785,0.204797,96465.0,96463.0,0.15]
[1739473752033,0.0493,96465.0,96463.0,0.15]
[1739473752233,0.0001065,96466.0,96462.0,0.30983765]
[1739473752472,0.0001065,96466.0,96463.0,0.155]
[1739473752995,0.188,96465.0,96463.0,0.155]
[1739473753214,0.188,96465.0,96463.0,0.153]
[1739473753424,0.0001065,96466.0,96463.0,0.153]
[1739473753623,0.0001065,96466.0,96464.0,0.155498]
[1739473753624,0.1878,96465.0,96464.0,0.155498]
[1739473754004,0.0001065,96466.0,96463.0,0.15]
[1739473754659,0.231302,96465.0,96463.0,0.15]
[1739473755686,0.231302,96465.0,96463.0,0.152]
[1739473755972,0.155498,96464.0,96463.0,0.151]
[1739473756185,0.386798,96465.0,96463.0,0.151]
[1739473756390,0.297393,96464.0,96463.0,0.153]
[1739473756612,0.369278,96465.0,96463.0,0.153]
[1739473756836,0.395235,96465.0,96463.0,0.153]
[1739473757653,0.452755,96464.0,96463.0,0.153]
[1739473758215,0.452755,96464.0,96463.0,0.155]
[1739473758711,0.452755,96464.0,96463.0,0.153]
[1739473759022,0.452755,96464.0,96463.0,0.155]
[1739473759202,0.452755,96464.0,96463.0,0.152]
[1739473759418,0.452755,96464.0,96463.0,0.155]
[1739473762043,0.452755,96464.0,96463.0,0.15522344]
[1739473765461,0.297257,96464.0,96463.0,0.15522344]
[1739473765672,0.951063,96465.0,96463.0,0.15522344]
[1739473765896,0.953853,96465.0,96463.0,0.15522344]
[1739473766106,0.155498,96464.0,96463.0,0.15522344]
[1739473766335,0.990856,96464.0,96463.0,0.15522344]
[1739473766530,1.02189,96465.0,96463.0,0.15522344]
[1739473766737,1.177387,96465.0,96463.0,0.15522344]
[1739473766969,1.136309,96464.0,96463.0,0.15522344]
[1739473767130,0.457524,96464.0,96463.0,0.15522344]
[1739473767338,0.457524,96464.0,96463.0,0.15322344]
[1739473767533,0.155496,96465.0,96463.0,0.15322344]
[1739473767732,0.155496,96465.0,96463.0,0.15222344]
[1739473767959,0.6948,96464.0,96463.0,0.15522344]
[1739473768117,0.6948,96464.0,96463.0,0.15022344]
[1739473768513,0.850298,96464.0,96463.0,0.15522344]
[1739473768840,0.297842,96464.0,96463.0,0.15222344]
[1739473769042,0.155498,96464.0,96463.0,0.15322344]
[1739473769413,0.693596,96464.0,96463.0,0.15222344]
[1739473769541,0.155498,96464.0,96463.0,0.15222344]
[1739473769744,0.85034,96464.0,96463.0,0.15522344]
[1739473769947,0.84944,96464.0,96463.0,0.15522344]
[1739473770609,0.590083,96464.0,96463.0,0.15322344]
[1739473770805,0.639445,96465.0,96463.0,0.15322344]
[1739473771035,0.590558,96465.0,96463.0,0.15522344]
[1739473771224,0.576888,96464.0,96463.0,0.15522344]
[1739473771475,0.6619,96465.0,96463.0,0.15022344]
[1739473771683,0.0001065,96466.0,96465.0,0.305496]
[1739473771926,0.0001065,96466.0,96465.0,0.48889965]
[1739473772853,0.0001065,96466.0,96465.0,0.49189965]
[1739473774661,0.0001065,96466.0,96465.0,0.49489965]
[1739473775421,0.0001065,96466.0,96465.0,0.51489965]
[1739473775785,0.0001065,96466.0,96465.0,0.51889965]
[1739473776200,0.0001065,96466.0,96465.0,0.52589965]
[1739473776410,0.0001065,96466.0,96465.0,0.57279965]
[1739473780331,0.0001065,96466.0,96465.0,1.10799965]
[1739473780469,0.0001065,96466.0,96465.0,1.10099965]
[1739473780671,0.0001065,96466.0,96465.0,1.10799965]
[1739473780914,0.0001065,96466.0,96465.0,1.10099965]
[1739473781122,0.0001065,96466.0,96465.0,1.10799965]
[1739473781660,0.0001065,96466.0,96465.0,0.95719965]
[1739473782361,0.0001065,96466.0,96465.0,0.80170365]
[1739473782598,0.0001065,96466.0,96465.0,0.79470365]
[1739473782795,0.0001065,96466.0,96465.0,0.80170365]
[1739473783422,0.0001065,96466.0,96465.0,0.95719965]
[1739473783597,0.0001065,96466.0,96465.0,0.95019965]
[1739473783824,0.0001065,96466.0,96465.0,0.95719965]
[1739473784028,0.0001065,96466.0,96465.0,0.95019965]
[1739473784228,0.0001065,96466.0,96465.0,0.95719965]
[1739473784434,0.0001065,96466.0,96465.0,0.95019965]
[1739473784687,0.0001065,96466.0,96465.0,0.95719965]
[1739473786154,0.0001065,96466.0,96465.0,0.42199965]
[1739473789434,0.0001065,96466.0,96465.0,0.26650365]
[1739473790340,0.0001065,96466.0,96465.0,0.25950365]
[1739473790535,0.1556015,96466.0,96465.0,0.157]
[1739473790882,0.1556015,96466.0,96465.0,0.164]
[1739473791109,0.0001065,96466.0,96465.0,0.164]
[1739473791745,0.1556015,96466.0,96465.0,0.164]
[1739473792244,0.1556015,96466.0,96465.0,0.157]
[1739473792693,0.1556015,96466.0,96465.0,0.164]
[1739473792922,0.1556015,96466.0,96465.0,0.157]
[1739473793115,0.0001065,96466.0,96465.0,0.157]
[1739473793274,0.1556015,96466.0,96465.0,0.157]
[1739473793482,0.0001065,96466.0,96465.0,0.007]
[1739473793682,0.0001065,96466.0,96465.0,0.42199965]
[1739473796538,0.0001065,96466.0,96465.0,0.42222309]
[1739473796954,0.0001065,96466.0,96465.0,0.42218309]
[1739473799915,0.0001065,96466.0,96465.0,0.26668709]
[1739473800123,0.0001065,96466.0,96465.0,0.42218309]
[1739473800750,0.0001065,96466.0,96465.0,0.27218309]
[1739473801903,0.0001065,96466.0,96465.0,0.34918309]
[1739473804242,0.0001065,96466.0,96465.0,0.37218309]
[1739473810304,0.0001065,96466.0,96465.0,0.52218309]
[1739473816706,0.0001065,96466.0,96465.0,0.49918309]
[1739473821885,0.0001065,96466.0,96465.0,0.42218309]
[1739473823322,0.0001065,96466.0,96465.0,0.44518309]
[1739473823499,0.0001065,96466.0,96465.0,0.52448309]
[1739473828856,0.0001065,96466.0,96465.0,0.55644082]
[1739473829876,0.0001065,96466.0,96465.0,0.52448309]
[1739473830096,0.0001065,96466.0,96465.0,0.55644223]
[1739473830502,0.0001065,96466.0,96465.0,0.52448309]
[1739473830660,0.0001065,96466.0,96465.0,0.64844092]
[1739473831485,0.0001065,96466.0,96465.0,0.61648135]
[1739473831668,0.0001065,96466.0,96465.0,0.64843628]
[1739473832785,0.0001065,96466.0,96465.0,0.55643802]
[1739473835546,0.0001065,96466.0,96465.0,0.42218309]
[1739473837775,0.2334015,96466.0,96465.0,0.11668709]
[1739473837992,0.2334015,96466.0,96465.0,0.01418344]
[1739473837993,0.2446612,96466.0,96465.0,0.01418344]
[1739473838199,0.5984952,96466.0,96465.0,0.01418344]
[1739473838725,0.5984952,96466.0,96465.0,0.00022344]
[1739473839140,0.4428937,96466.0,96465.0,0.00922344]
[1739473839347,0.275639,96466.0,96465.0,0.00922344]
[1739473839557,0.24242,96466.0,96465.0,0.16471944]
[1739473839765,0.0472,96468.0,96467.0,0.155493]
[1739473839972,0.0472,96468.0,96467.0,0.25799665]
[1739473840180,0.05814213,96468.0,96467.0,0.10250365]
[1739473840641,0.05814213,96468.0,96467.0,0.25799665]
[1739473840955,0.0472,96468.0,96467.0,0.25799665]
[1739473841271,0.01132184,96477.0,96476.0,0.155479]
[1739473841475,0.01132184,96477.0,96476.0,0.25798265]
[1739473841661,0.1244,96489.0,96482.0,0.155469]
[1739473841893,0.1244,96489.0,96482.0,0.25797265]
[1739473842090,0.0108138,96485.0,96482.0,0.25797265]
[1739473842415,0.1244,96489.0,96482.0,0.25797265]
[1739473842786,0.0001065,96495.0,96482.0,0.25797265]
[1739473842981,0.0001065,96495.0,96482.0,0.41097265]
[1739473843185,5.848629,96491.0,96490.0,0.305456]
[1739473843393,5.84906655,96491.0,96490.0,0.43095965]
[1739473844464,5.84906655,96491.0,96490.0,0.40795965]
[1739473844675,5.84906655,96491.0,96490.0,0.41495965]
[1739473844875,5.84906655,96491.0,96490.0,0.42195965]
[1739473845292,5.84906655,96491.0,96490.0,0.41495965]
[1739473845494,5.84906655,96491.0,96490.0,0.43095965]
[1739473845719,5.84906655,96491.0,96490.0,0.43795965]
[1739473845937,5.84906655,96491.0,96490.0,0.44495965]
[1739473846164,5.84906655,96491.0,96490.0,0.43795965]
[1739473846511,5.84906655,96491.0,96490.0,0.97315965]
[1739473846866,5.84906655,96491.0,96490.0,0.96615965]
[1739473847308,5.84906655,96491.0,96490.0,0.97315965]
[1739473847502,5.84906655,96491.0,96490.0,0.98015965]
[1739473849280,5.84906655,96491.0,96490.0,0.42195965]
[1739473849518,5.84906655,96491.0,96490.0,0.26650365]
[1739473850237,5.84906655,96491.0,96490.0,0.42195965]
[1739473850479,6.01585846,96491.0,96490.0,0.10950365]
[1739473850707,6.65213346,96491.0,96460.0,0.25755449]
[1739473850946,0.155463,96486.0,96477.0,0.155477]
[1739473851162,5.93780446,96491.0,96484.0,0.155466]
[1739473851397,0.844017,96490.0,96482.0,0.155468]
[1739473851793,5.93780446,96491.0,96483.0,0.10250365]
[1739473852011,5.93780446,96491.0,96484.0,0.155466]
[1739473852212,5.93780446,96491.0,96485.0,0.25796765]
[1739473852479,0.420716,96490.0,96485.0,0.10250365]
[1739473852883,0.420716,96490.0,96485.0,0.25796765]
[1739473853111,0.280528,96490.0,96485.0,0.10250365]
[1739473853310,0.253019,96490.0,96485.0,0.10250365]
[1739473853579,5.93780446,96491.0,96485.0,0.10250365]
[1739473853767,0.344514,96490.0,96485.0,0.10250365]
[1739473854253,0.344514,96490.0,96485.0,0.10450365]
[1739473854464,5.93791086,96491.0,96487.0,0.155461]
[1739473854674,0.58834,96490.0,96487.0,0.10250365]
[1739473854888,0.470847,96490.0,96487.0,0.10250365]
[1739473855092,0.63159,96490.0,96487.0,0.10250365]
[1739473855312,0.207277,96489.0,96472.0,0.29031304]
[1739473855515,0.155459,96488.0,96485.0,0.002]
[1739473855731,0.155459,96488.0,96480.0,0.155472]
[1739473855942,0.155459,96488.0,96481.0,0.10250365]
[1739473856585,0.155459,96488.0,96485.0,0.002]
[1739473856762,5.93791086,96491.0,96485.0,0.002]
[1739473856967,0.653599,96490.0,96487.0,0.003]
[1739473857177,0.155459,96488.0,96481.0,0.10450365]
[1739473857388,0.207281,96488.0,96481.0,0.10450365]
[1739473857594,0.155468,96483.0,96481.0,0.10450365]
[1739473857810,0.155466,96485.0,96481.0,0.10250365]
[1739473858013,5.93791086,96491.0,96481.0,0.10550365]
[1739473858223,0.155462,96486.0,96485.0,0.00096]
[1739473858661,5.93791086,96491.0,96485.0,0.00096]
[1739473858870,0.155462,96486.0,96485.0,0.00096]
[1739473859516,0.155462,96487.0,96485.0,0.00096]
[1739473859942,0.155462,96486.0,96481.0,0.10250365]
[1739473860446,0.207281,96488.0,96481.0,0.10650365]
[1739473860691,5.93768189,96491.0,96481.0,0.10450365]
[1739473860926,5.86028189,96491.0,96481.0,0.10250365]
[1739473861155,5.86028189,96491.0,96481.0,0.10550365]
[1739473861396,0.215335,96490.0,96481.0,0.10850365]
[1739473861602,0.193391,96490.0,96482.0,0.155467]
[1739473861805,5.86028189,96491.0,96483.0,0.10250365]
[1739473862014,0.353488,96490.0,96483.0,0.10250365]
[1739473862225,0.277425,96490.0,96483.0,0.10250365]
[1739473862433,5.86028189,96491.0,96483.0,0.10250365]
[1739473862654,0.937736,96490.0,96481.0,0.002]
[1739473862860,0.937736,96490.0,96481.0,0.10550365]
[1739473863065,0.937736,96490.0,96481.0,0.001]
[1739473863066,0.155469,96482.0,96481.0,0.001]
[1739473863272,0.155467,96484.0,96476.0,0.155478]
[1739473863479,0.155467,96484.0,96483.0,0.002]
[1739473863685,0.207279,96488.0,96483.0,0.001]
[1739473864089,0.155463,96486.0,96481.0,0.002]
[1739473864303,5.86028189,96491.0,96477.0,0.10250365]
[1739473864514,0.937892,96490.0,96477.0,0.10250365]
[1739473864714,0.424108,96490.0,96480.0,0.155471]
[1739473864924,0.155461,96487.0,96480.0,0.25797465]
[1739473865130,0.155459,96488.0,96483.0,0.003]
[1739473865339,5.86028189,96491.0,96483.0,0.003]
[1739473865545,0.155458,96489.0,96483.0,0.003]
[1739473865701,0.155459,96488.0,96483.0,0.003]
[1739473865905,5.86028189,96491.0,96483.0,0.005]
[1739473866104,0.15546,96488.0,96483.0,0.005]
[1739473866370,0.207275,96490.0,96483.0,0.003]
[1739473866588,5.84894398,96491.0,96484.0,0.10250365]
[1739473866802,5.84894398,96491.0,96490.0,0.43095965]
[1739473867412,5.84894398,96491.0,96490.0,0.40795965]
[1739473867613,5.84894398,96491.0,96490.0,0.94315965]
[1739473868035,5.84894398,96491.0,96490.0,0.94515965]
[1739473868154,5.84894398,96491.0,96490.0,0.94315965]
[1739473868382,5.84894398,96491.0,96490.0,0.41495965]
[1739473868813,5.84894398,96491.0,96490.0,0.42195965]
[1739473869640,5.84894398,96491.0,96490.0,0.44495965]
[1739473869954,5.80748998,96491.0,96490.0,0.56705965]
[1739473870133,5.78676298,96491.0,96490.0,0.56705965]
[1739473870327,5.74530898,96491.0,96490.0,0.55305965]
[1739473870536,5.74530898,96491.0,96490.0,0.56005965]
[1739473871173,5.70385498,96491.0,96490.0,0.56705965]
[1739473871378,5.64167398,96491.0,96490.0,0.56705965]
[1739473871786,5.60021998,96491.0,96490.0,0.56005965]
[1739473871983,5.53803898,96491.0,96490.0,1.09525965]
[1739473872192,5.53803898,96491.0,96490.0,1.10225965]
[1739473872866,5.49658498,96491.0,96490.0,1.10225965]
[1739473873734,5.43440398,96491.0,96490.0,1.10225965]
[1739473874043,5.39294998,96491.0,96490.0,1.10225965]
[1739473874249,5.33076898,96491.0,96490.0,1.10225965]
[1739473875308,5.28931498,96491.0,96490.0,1.10225965]
[1739473876272,5.28931498,96491.0,96490.0,1.05625965]
[1739473885249,5.21149798,96491.0,96490.0,1.05625965]
[1739473888388,5.19077098,96491.0,96490.0,1.05625965]
[1739473889327,5.14931698,96491.0,96490.0,1.05625965]
[1739473891556,5.14931698,96491.0,96490.0,1.0564833]
[1739473891832,5.12858998,96491.0,96490.0,1.0564833]
[1739473892910,5.12858998,96491.0,96490.0,0.9803833]
[1739473893125,5.12858998,96491.0,96490.0,0.2721833]
[1739473893548,5.12858998,96491.0,96490.0,0.1167273]
[1739473893968,5.21158998,96491.0,96490.0,0.1167273]
[1739473894173,5.36704398,96491.0,96490.0,0.00722365]
[1739473894806,5.21158998,96491.0,96490.0,0.01422365]
[1739473895008,5.21158998,96491.0,96490.0,0.00022365]
[1739473895222,5.21158998,96491.0,96490.0,0.00622365]
[1739473895633,5.21158998,96491.0,96490.0,0.16167965]
[1739473896220,5.21158998,96491.0,96490.0,0.01222365]
[1739473899075,5.36704398,96491.0,96490.0,0.01222365]
[1739473900746,5.12858998,96491.0,96490.0,0.1147273]
[1739473900952,5.12858998,96491.0,96490.0,0.2701833]
[1739473901150,5.12858998,96491.0,96490.0,0.1147273]
[1739473903208,5.28404398,96491.0,96490.0,0.1147273]
[1739473903555,5.12858998,96491.0,96490.0,0.1147273]
[1739473903986,5.28404398,96491.0,96490.0,0.1147273]
[1739473905099,5.12858998,96491.0,96490.0,0.1147273]
[1739473905501,5.28404398,96491.0,96490.0,0.1147273]
[1739473905916,5.12858998,96491.0,96490.0,0.2701833]
[1739473906236,5.12858998,96491.0,96490.0,0.1147273]
[1739473906616,5.28404398,96491.0,96490.0,0.1147273]
[1739473907018,5.28404398,96491.0,96490.0,0.01222365]
[1739473910057,5.64564298,96491.0,96490.0,0.01222365]
[1739473910927,5.72474298,96491.0,96490.0,0.01222365]
[1739473911147,5.72474298,96491.0,96490.0,0.00022365]
[1739473911327,5.72474298,96491.0,96490.0,0.00322365]
[1739473911539,5.94845072,96491.0,96490.0,0.00622365]
[1739473911748,5.94845072,96491.0,96490.0,0.00322365]
[1739473911970,0.276169,96482.0,96481.0,0.00022365]
[1739473912170,2.4391984,96482.0,96481.0,0.00022365]
[1739473912391,2.6831864,96482.0,96481.0,0.00022365]
[1739473912620,2.4074114,96482.0,96481.0,0.00022365]
[1739473914592,2.3866034,96482.0,96481.0,0.00022365]
[1739473914798,2.2411524,96482.0,96481.0,0.00022365]
[1739473917187,2.0856834,96482.0,96481.0,0.00022365]
[1739473917857,1.9838934,96482.0,96481.0,0.00022365]
[1739473918985,1.9838934,96482.0,96481.0,0.00018365]
[1739473920794,0.963042,96482.0,96481.0,0.00018365]
[1739473921045,0.698075,96482.0,96481.0,0.00018365]
[1739473925312,0.1207,96482.0,96481.0,0.00018365]
[1739473925732,0.42645772,96482.0,96481.0,0.00018365]
[1739473925984,0.1244,96471.0,96463.0,0.00022344]
[1739473926176,0.1256,96469.0,96463.0,0.00022344]
[1739473926395,0.0472,96467.0,96463.0,0.00022344]
[1739473926616,0.0784,96469.0,96440.0,0.00022365]
[1739473926617,0.1,96458.0,96440.0,0.00022365]
[1739473926827,0.14458896,96453.0,96444.0,0.08300004]
[1739473927042,3.28273,96452.0,96444.0,0.08300004]
[1739473927258,0.1,96448.0,96440.0,0.00022365]
[1739473927489,3.28273,96447.0,96440.0,0.00022365]
[1739473927749,3.232214,96447.0,96440.0,0.00022365]
[1739473927990,0.02029661,96445.0,96440.0,0.00022365]
[1739473928199,1.434759,96444.0,96440.0,0.00022365]
[1739473928438,1.309699,96443.0,96442.0,0.00222365]
[1739473928674,0.4940504,96443.0,96442.0,0.00022365]
[1739473928915,3.7767804,96443.0,96442.0,0.00022365]
[1739473929158,3.7767804,96443.0,96442.0,0.00122365]
[1739473929380,3.80703447,96443.0,96442.0,0.00122365]
[1739473929872,3.80703447,96443.0,96442.0,0.00222365]
[1739473930332,3.80703447,96443.0,96442.0,0.00022365]
[1739473930794,3.80703447,96443.0,96442.0,0.00322365]
[1739473931016,3.80703447,96443.0,96442.0,0.00122365]
[1739473931227,3.80703447,96443.0,96442.0,0.00322365]
[1739473932555,3.7767804,96443.0,96442.0,0.00322365]
[1739473933604,3.7577394,96443.0,96442.0,0.00322365]
[1739473933841,3.3908184,96443.0,96442.0,0.00322365]
[1739473935086,3.3094184,96443.0,96442.0,0.00322365]
[1739473935294,2.0041134,96443.0,96442.0,0.00322365]
[1739473935501,1.9596114,96443.0,96442.0,0.00322365]
[1739473936484,1.7530734,96443.0,96442.0,0.00322365]
[1739473939693,1.6655714,96443.0,96442.0,0.00322365]
[1739473939910,1.042766,96443.0,96442.0,0.00322365]
[1739473940111,1.387229,96445.0,96442.0,0.00322365]
[1739473940661,1.285817,96445.0,96442.0,0.00322365]
[1739473940861,0.663536,96444.0,96442.0,0.00322365]
[1739473941071,0.775127,96446.0,96442.0,0.00122365]
[1739473941723,0.775127,96446.0,96442.0,0.00022365]
[1739473941863,0.775127,96446.0,96442.0,0.00322365]
[1739473942284,0.775127,96446.0,96442.0,0.00022365]
[1739473942523,0.775127,96446.0,96442.0,0.00622365]
[1739473942736,0.076,96444.0,96442.0,0.00622365]
[1739473943094,3.28273,96443.0,96442.0,0.00622365]
[1739473943774,0.769467,96443.0,96442.0,0.00622365]
[1739473943982,0.576387,96443.0,96442.0,0.00322365]
[1739473944195,0.0313217,96447.0,96442.0,0.00322365]
[1739473944196,0.180196,96446.0,96442.0,0.00422365]
[1739473944409,0.169889,96446.0,96442.0,0.00322365]
[1739473944626,0.01104169,96447.0,96442.0,0.00522365]
[1739473944837,0.20347,96446.0,96442.0,0.00522365]
[1739473945060,0.20347,96446.0,96442.0,0.00022365]
[1739473945274,0.01104169,96447.0,96442.0,0.00022365]
[1739473945275,0.01104169,96447.0,96442.0,0.00422365]
[1739473945489,0.165244,96446.0,96442.0,0.00022365]
[1739473945919,0.109988,96446.0,96442.0,0.00322365]
[1739473946134,0.109815,96446.0,96442.0,0.00622365]
[1739473946322,0.406,96445.0,96442.0,0.00622365]
[1739473946457,0.457907,96446.0,96442.0,0.00622365]
[1739473946857,0.457907,96446.0,96442.0,0.00322365]
[1739473947290,0.00011326,96447.0,96443.0,0.10250365]
[1739473947504,0.00011326,96447.0,96444.0,0.2275]
[1739473947720,0.00011326,96447.0,96446.0,0.15]
[1739473947941,0.00011326,96447.0,96446.0,0.29770365]
[1739473949244,0.00011326,96447.0,96446.0,0.31170365]
[1739473950107,0.00011326,96447.0,96446.0,0.46723065]
[1739473950745,0.00011326,96447.0,96446.0,1.07863065]
[1739473951857,0.00011326,96447.0,96446.0,1.10347276]
[1739473952063,0.0001066,96463.0,96446.0,1.10347276]
[1739473952064,0.0001066,96463.0,96462.0,0.384201]
[1739473952278,0.00015193,96463.0,96462.0,1.02190465]
[1739473952497,0.00015193,96463.0,96462.0,1.07030465]
[1739473953655,0.00015193,96463.0,96462.0,1.07730465]
[1739473953867,0.00015193,96463.0,96462.0,1.08230465]
[1739473954272,0.00015193,96463.0,96462.0,1.07730465]
[1739473954705,0.00015193,96463.0,96462.0,1.08430465]
[1739473954945,0.00015193,96463.0,96462.0,1.07730465]
[1739473955153,0.00015193,96463.0,96462.0,1.02890465]
[1739473955325,0.00015193,96463.0,96462.0,1.03590465]
[1739473956590,0.00015193,96463.0,96462.0,0.50070465]
[1739473956801,0.00015193,96463.0,96462.0,1.03590465]
[1739473958484,0.00015193,96463.0,96462.0,0.50070465]
[1739473961630,0.00015193,96463.0,96462.0,1.03590465]
[1739473969106,4.90935122,96491.0,96486.0,0.155462]
[1739473969325,0.396517,96490.0,96486.0,0.155462]
[1739473969755,0.396517,96490.0,96470.0,0.14458896]
[1739473969756,0.396517,96490.0,96487.0,0.155459]
[1739473969991,4.90978867,96491.0,96471.0,0.25250365]
[1739473970221,4.90978867,96491.0,96475.0,0.207307]
[1739473970458,4.90978867,96491.0,96487.0,0.15546]
[1739473971122,4.90978867,96491.0,96483.0,0.207289]
[1739473971337,0.165334,96490.0,96483.0,0.10250365]
[1739473971547,0.1248,96489.0,96471.0,0.003]
[1739473971767,0.1248,96489.0,96474.0,0.207309]
[1739473971977,0.1248,96489.0,96478.0,0.155474]
[1739473972185,0.155459,96488.0,96487.0,0.004]
[1739473972849,0.155459,96488.0,96487.0,0.003]
[1739473973466,0.1248,96489.0,96479.0,0.155472]
[1739473973667,0.155461,96487.0,96479.0,0.155472]
[1739473973866,0.155463,96486.0,96478.0,0.155475]
[1739473974905,0.3321856,96489.0,96475.0,0.30981065]
[1739473974906,0.155465,96485.0,96475.0,0.30981065]
[1739473975130,0.207281,96488.0,96476.0,0.155479]
[1739473975352,0.155467,96483.0,96477.0,0.10250365]
[1739473975756,0.155466,96484.0,96479.0,0.001]
[1739473976179,0.155466,96484.0,96477.0,0.10250365]